bitfinex/quotes_BTCUSD_20241004
["timestamp","ask_amount","ask_price","bid_price","bid_amount"]
[1728060390254,0.69872629,62301.0,62300.0,0.02113636]
[1728060390472,0.68472629,62301.0,62300.0,0.02113636]
[1728060390817,0.69672629,62301.0,62300.0,0.02113636]
[1728060391043,0.54574881,62301.0,62300.0,0.02113636]
[1728060391251,0.54574881,62301.0,62292.0,0.001642]
[1728060391252,0.00886364,62300.0,62292.0,0.001642]
[1728060391470,0.46742066,62293.0,62292.0,0.001642]
[1728060393966,0.47342066,62293.0,62292.0,0.001642]
[1728060394206,0.623749,62293.0,62292.0,0.001642]
[1728060394633,0.48142066,62293.0,62292.0,0.001642]
[1728060394839,0.29970652,62293.0,62292.0,0.084342]
[1728060395063,0.19970652,62293.0,62292.0,0.174842]
[1728060395778,0.03917552,62293.0,62292.0,0.174842]
[1728060395984,0.19970652,62293.0,62292.0,0.174842]
[1728060396192,0.03917552,62293.0,62292.0,0.174842]
[1728060396417,0.03317552,62293.0,62292.0,0.174842]
[1728060396621,0.19970652,62293.0,62292.0,0.174842]
[1728060396846,0.19170652,62293.0,62292.0,0.174842]
[1728060397059,0.18570652,62293.0,62292.0,0.174842]
[1728060397264,0.19370652,62293.0,62292.0,0.174842]
[1728060397463,0.19370652,62293.0,62292.0,0.176842]
[1728060397683,0.02517552,62293.0,62292.0,0.176842]
[1728060398345,0.160528,62295.0,62292.0,0.176842]
[1728060398555,0.321052,62296.0,62292.0,0.176842]
[1728060398778,0.34619836,62301.0,62292.0,0.176842]
[1728060398779,0.02517536,62301.0,62292.0,0.176842]
[1728060399003,0.160526,62295.0,62292.0,0.176842]
[1728060399224,0.160524,62296.0,62292.0,0.337374]
[1728060399453,0.160524,62296.0,62292.0,0.174842]
[1728060399695,0.160524,62296.0,62292.0,0.175842]
[1728060399918,0.160526,62296.0,62292.0,0.336375]
[1728060400141,0.160527,62295.0,62292.0,0.175842]
[1728060400363,0.160527,62295.0,62292.0,0.174842]
[1728060400585,0.10886364,62300.0,62294.0,0.321056]
[1728060400586,0.00886364,62300.0,62294.0,0.321056]
[1728060400808,0.2405041,62297.0,62293.0,0.0808]
[1728060401015,0.160522,62297.0,62293.0,0.0808]
[1728060401228,0.002,62296.0,62293.0,0.0808]
[1728060401434,0.160519,62298.0,62294.0,0.160527]
[1728060401646,0.160521,62297.0,62293.0,0.24133]
[1728060401843,0.321033,62299.0,62293.0,0.0808]
[1728060402088,0.160524,62296.0,62293.0,0.0808]
[1728060402292,0.160529,62294.0,62293.0,0.0808]
[1728060402757,0.160529,62294.0,62292.0,0.093142]
[1728060402758,0.183531,62293.0,62292.0,0.001642]
[1728060402976,0.160531,62293.0,62292.0,0.001642]
[1728060404646,0.160531,62293.0,62292.0,0.181342]
[1728060405935,0.160531,62293.0,62292.0,0.183342]
[1728060406579,0.160531,62293.0,62292.0,0.181342]
[1728060406790,0.160531,62293.0,62292.0,0.183342]
[1728060407264,0.160531,62293.0,62292.0,0.084142]
[1728060407478,0.29036211,62293.0,62292.0,0.082142]
[1728060407683,0.29036211,62293.0,62292.0,0.084142]
[1728060408151,0.29036211,62293.0,62292.0,0.003642]
[1728060408888,0.39036211,62293.0,62292.0,0.003642]
[1728060409094,0.39036211,62293.0,62292.0,0.001642]
[1728060409315,0.283531,62293.0,62292.0,0.001642]
[1728060409751,0.283531,62293.0,62292.0,0.003642]
[1728060410191,0.288531,62293.0,62292.0,0.001642]
[1728060410617,0.291531,62293.0,62292.0,0.001642]
[1728060410830,0.286531,62293.0,62292.0,0.001642]
[1728060411042,0.39798347,62293.0,62292.0,0.001642]
[1728060411253,0.42315854,62293.0,62292.0,0.001642]
[1728060411465,0.31170607,62293.0,62292.0,0.001642]
[1728060411901,0.30870607,62293.0,62292.0,0.001642]
[1728060412339,0.31270607,62293.0,62292.0,0.001642]
[1728060412794,0.31870607,62293.0,62292.0,0.001642]
[1728060418488,0.293531,62293.0,62292.0,0.001642]
[1728060418723,0.44173949,62293.0,62292.0,0.001642]
[1728060419208,0.285536,62291.0,62290.0,6.3e-07]
[1728060419453,0.55962566,62291.0,62290.0,6.3e-07]
[1728060419685,0.60764813,62291.0,62290.0,6.3e-07]
[1728060419934,0.76242957,62291.0,62290.0,6.3e-07]
[1728060420401,0.76042957,62291.0,62290.0,6.3e-07]
[1728060420641,0.77642957,62291.0,62290.0,6.3e-07]
[1728060420881,0.7284071,62291.0,62290.0,6.3e-07]
[1728060421342,0.7284071,62291.0,62280.0,0.02430891]
[1728060421343,0.002,62289.0,62280.0,0.0154459]
[1728060421346,0.260562,62281.0,62280.0,0.25595]
[1728060421583,0.283562,62281.0,62280.0,0.25595]
[1728060421822,0.283562,62281.0,62280.0,0.0154459]
[1728060422788,0.292562,62281.0,62280.0,0.0154459]
[1728060423038,0.290562,62281.0,62280.0,0.0154459]
[1728060423280,0.301562,62281.0,62280.0,0.0154459]
[1728060423515,0.294562,62281.0,62280.0,0.0154459]
[1728060423753,0.292562,62281.0,62280.0,0.0154459]
[1728060423982,0.303562,62281.0,62280.0,0.0154459]
[1728060424695,0.44058018,62281.0,62280.0,0.0154459]
[1728060425157,0.42058018,62281.0,62280.0,0.0154459]
[1728060425401,0.43658018,62281.0,62280.0,0.0154459]
[1728060425666,0.46176111,62281.0,62280.0,0.0154459]
[1728060425895,0.45476111,62281.0,62280.0,0.0154459]
[1728060426123,0.45476111,62281.0,62270.0,0.0789879]
[1728060426124,0.283588,62271.0,62270.0,0.0789879]
[1728060427061,0.30877112,62271.0,62270.0,0.0789879]
[1728060427829,0.28577112,62271.0,62270.0,0.0789879]
[1728060428061,0.18577112,62271.0,62270.0,0.0789879]
[1728060428303,0.160587,62272.0,62270.0,0.0789879]
[1728060428537,0.172588,62271.0,62270.0,0.0789879]
[1728060429000,0.160588,62271.0,62270.0,0.0789879]
[1728060429235,0.162588,62271.0,62270.0,0.0789879]
[1728060429937,0.164588,62271.0,62270.0,0.0789879]
[1728060432682,0.2412795,62271.0,62270.0,0.0789879]
[1728060432907,0.160588,62271.0,62270.0,0.0789879]
[1728060433383,0.160588,62271.0,62270.0,0.0806299]
[1728060434537,0.166588,62271.0,62270.0,0.0806299]
[1728060435002,0.321157,62275.0,62271.0,0.1746]
[1728060435003,0.32116,62275.0,62271.0,0.1746]
[1728060435286,0.321145,62277.0,62271.0,0.19181372]
[1728060435526,0.160581,62274.0,62271.0,0.19181372]
[1728060435761,0.160583,62273.0,62271.0,0.1706]
[1728060435978,0.321158,62275.0,62271.0,0.1706]
[1728060435979,0.160581,62274.0,62271.0,0.1706]
[1728060436228,0.3463335,62276.0,62275.0,0.160578]
[1728060436229,0.0251805,62276.0,62275.0,0.160578]
[1728060436444,0.0251805,62276.0,62275.0,0.3067669]
[1728060436670,0.0251805,62276.0,62275.0,0.241178]
[1728060437385,0.0251805,62276.0,62275.0,0.0806]
[1728060437610,0.1857555,62276.0,62275.0,0.0806]
[1728060438287,0.160575,62276.0,62275.0,0.0806]
[1728060438563,0.161575,62276.0,62275.0,0.1791]
[1728060438798,0.162575,62276.0,62275.0,0.1791]
[1728060440670,0.161575,62276.0,62275.0,0.1791]
[1728060440674,0.000821,62281.0,62277.0,0.160572]
[1728060440903,0.161384,62281.0,62277.0,0.16331608]
[1728060441147,0.160565,62280.0,62278.0,0.083]
[1728060441402,0.160567,62279.0,62278.0,0.083]
[1728060441877,0.160565,62280.0,62278.0,0.083]
[1728060442108,0.02599836,62281.0,62278.0,0.083]
[1728060442368,0.160567,62279.0,62278.0,0.083]
[1728060443762,0.160567,62279.0,62278.0,0.084]
[1728060444229,0.160567,62279.0,62278.0,0.083]
[1728060444480,0.160567,62279.0,62278.0,0.084]
[1728060447064,0.1865657,62279.0,62278.0,0.084]
[1728060448262,0.161388,62279.0,62278.0,0.084]
[1728060448497,0.161388,62279.0,62278.0,0.001]
[1728060448498,0.70878176,62279.0,62278.0,0.001]
[1728060448729,0.46827766,62279.0,62278.0,0.001]
[1728060449876,0.58853479,62279.0,62278.0,0.001]
[1728060450373,0.52204608,62279.0,62278.0,0.001]
[1728060450720,0.47427766,62279.0,62278.0,0.001]
[1728060450806,0.47227766,62279.0,62278.0,0.001]
[1728060451059,0.260585,62272.0,62271.0,0.001642]
[1728060452241,0.260585,62272.0,62271.0,0.002642]
[1728060452242,0.39480282,62272.0,62271.0,0.002642]
[1728060452494,0.290585,62272.0,62271.0,0.002642]
[1728060452736,0.35689656,62272.0,62271.0,0.001642]
[1728060452965,0.35577885,62272.0,62271.0,0.001642]
[1728060453235,0.35977885,62272.0,62271.0,0.001642]
[1728060453476,0.36777885,62272.0,62271.0,0.001642]
[1728060454168,0.3437241,62272.0,62271.0,0.001642]
[1728060454410,0.3397241,62272.0,62271.0,0.001642]
[1728060454890,0.3457241,62272.0,62271.0,0.001642]
[1728060455130,0.297585,62272.0,62271.0,0.001642]
[1728060455627,0.32276854,62272.0,62271.0,0.001642]
[1728060458189,0.29976854,62272.0,62271.0,0.001642]
[1728060458473,0.274585,62272.0,62271.0,0.001642]
[1728060458933,0.275406,62272.0,62271.0,0.001642]
[1728060461380,0.30058871,62272.0,62271.0,0.001642]
[1728060462127,0.29458871,62272.0,62271.0,0.001642]
[1728060462330,0.30358871,62272.0,62271.0,0.001642]
[1728060462553,0.278406,62272.0,62271.0,0.001642]
[1728060463229,0.278406,62272.0,62271.0,0.077642]
[1728060463474,0.178406,62272.0,62271.0,0.077642]
[1728060463719,0.178406,62272.0,62271.0,0.174042]
[1728060463957,0.169406,62272.0,62271.0,0.174042]
[1728060464198,0.175406,62272.0,62271.0,0.174042]
[1728060464654,0.169406,62272.0,62271.0,0.174042]
[1728060464896,0.161406,62272.0,62271.0,0.174042]
[1728060465679,0.18658748,62272.0,62271.0,0.174042]
[1728060466369,0.18658748,62272.0,62271.0,0.175042]
[1728060468351,0.161406,62272.0,62271.0,0.175042]
[1728060471416,0.000821,62272.0,62271.0,0.175042]
[1728060471649,0.000821,62272.0,62271.0,0.35588792]
[1728060471868,0.000821,62272.0,62271.0,0.33563]
[1728060472094,0.000821,62272.0,62271.0,0.175042]
[1728060472574,0.000821,62272.0,62271.0,0.33563]
[1728060472808,0.000821,62272.0,62271.0,0.175042]
[1728060473046,0.000821,62272.0,62271.0,0.174042]
[1728060473311,0.001821,62272.0,62271.0,0.176042]
[1728060473561,0.162406,62272.0,62271.0,0.175042]
[1728060473839,0.002821,62272.0,62271.0,0.177042]
[1728060474074,0.001821,62272.0,62271.0,0.176042]
[1728060474317,0.002821,62272.0,62271.0,0.177042]
[1728060474752,0.163406,62272.0,62271.0,0.177042]
[1728060475954,0.002821,62272.0,62271.0,0.177042]
[1728060476428,0.02800083,62272.0,62271.0,0.33763]
[1728060478301,0.002821,62272.0,62271.0,0.33763]
[1728060479501,0.163406,62272.0,62271.0,0.177042]
[1728060479770,0.002821,62272.0,62271.0,0.177042]
[1728060480002,0.002821,62272.0,62271.0,0.33763]
[1728060480509,0.002821,62272.0,62271.0,0.33963]
[1728060480738,0.002821,62272.0,62271.0,0.33763]
[1728060481009,0.000821,62279.0,62276.0,0.002]
[1728060481010,0.02517678,62277.0,62276.0,0.002]
[1728060481277,0.02517678,62277.0,62276.0,0.51586466]
[1728060481536,0.02517678,62277.0,62276.0,0.51786466]
[1728060481752,0.000821,62279.0,62278.0,0.16257]
[1728060481978,0.000821,62279.0,62278.0,0.33137]
[1728060482460,0.000821,62279.0,62278.0,0.33337]
[1728060482683,0.000821,62281.0,62280.0,0.34645466]
[1728060482904,0.000821,62281.0,62280.0,0.51725466]
[1728060483596,0.2405041,62297.0,62292.0,0.328034]
[1728060483597,0.02517237,62293.0,62292.0,0.328034]
[1728060485017,0.02617237,62293.0,62292.0,0.51892366]
[1728060486011,0.02617237,62293.0,62292.0,0.52092366]
[1728060486236,0.02717237,62293.0,62292.0,0.52892366]
[1728060486463,0.02617237,62293.0,62292.0,0.52192366]
[1728060486715,0.02517237,62293.0,62292.0,0.51392366]
[1728060486937,0.02617237,62293.0,62292.0,0.51992366]
[1728060487163,0.02617237,62293.0,62292.0,0.52092366]
[1728060487409,0.02717237,62293.0,62292.0,0.52992366]
[1728060489254,0.02717237,62293.0,62292.0,0.1855]
[1728060489755,0.02717237,62293.0,62292.0,0.018]
[1728060489756,0.18770337,62293.0,62292.0,0.018]
[1728060491392,0.18670337,62293.0,62292.0,0.009]
[1728060492134,0.160537,62291.0,62288.0,0.160543]
[1728060492360,0.321072,62292.0,62286.0,0.0777]
[1728060492611,0.16054,62290.0,62286.0,0.0777]
[1728060492830,0.02717237,62293.0,62290.0,0.642155]
[1728060493064,0.02717237,62293.0,62292.0,0.160534]
[1728060493303,0.03417237,62293.0,62292.0,0.161534]
[1728060493736,0.02517237,62293.0,62287.0,0.18388966]
[1728060493961,0.02517237,62293.0,62290.0,0.002]
[1728060494210,0.05034416,62293.0,62290.0,0.002]
[1728060494945,0.05034416,62293.0,62292.0,0.001]
[1728060495427,0.05416516,62293.0,62292.0,0.001]
[1728060495707,0.05416516,62293.0,62292.0,0.003]
[1728060496187,0.06978365,62302.0,62292.0,0.001]
[1728060496428,0.001,62293.0,62292.0,0.001]
[1728060497139,0.02517383,62296.0,62292.0,0.001]
[1728060497610,0.02517383,62296.0,62281.0,0.0825]
[1728060497846,0.003,62293.0,62283.0,0.06045358]
[1728060498108,0.02517383,62296.0,62283.0,0.06045358]
[1728060498352,0.2405041,62295.0,62283.0,0.06045358]
[1728060499058,0.2405041,62295.0,62292.0,0.001]
[1728060499297,0.2405041,62295.0,62281.0,0.0825]
[1728060499541,0.2405041,62295.0,62282.0,0.2405041]
[1728060499542,0.128,62295.0,62282.0,0.2405041]
[1728060500265,0.123,62293.0,62279.0,0.001642]
[1728060500507,0.123,62293.0,62282.0,0.2405041]
[1728060500508,0.160557,62283.0,62282.0,0.2405041]
[1728060500777,0.123,62293.0,62279.0,0.001642]
[1728060500778,0.160565,62280.0,62279.0,0.001642]
[1728060501240,0.321126,62281.0,62279.0,0.001642]
[1728060501241,0.160564,62281.0,62279.0,0.001642]
[1728060501483,0.005,62295.0,62279.0,0.001642]
[1728060501716,0.001,62283.0,62282.0,0.008]
[1728060501944,0.001,62283.0,62279.0,0.162209]
[1728060501945,0.160559,62283.0,62279.0,0.162209]
[1728060502223,0.321077,62291.0,62282.0,0.2405041]
[1728060502224,0.321092,62288.0,62282.0,0.2405041]
[1728060502460,0.321095,62287.0,62279.0,0.011642]
[1728060502696,0.321092,62288.0,62279.0,0.001642]
[1728060502948,0.321113,62284.0,62279.0,0.162208]
[1728060503216,0.321095,62287.0,62279.0,0.322777]
[1728060503478,0.160553,62285.0,62281.0,0.16056]
[1728060503730,0.321092,62288.0,62281.0,0.160561]
[1728060503978,0.160553,62285.0,62281.0,0.160561]
[1728060504444,0.321074,62291.0,62279.0,0.07345218]
[1728060504445,0.160557,62283.0,62282.0,0.003]
[1728060504717,0.321104,62286.0,62279.0,0.006642]
[1728060504973,0.160562,62281.0,62279.0,0.006642]
[1728060505198,0.16056,62282.0,62279.0,0.001642]
[1728060505431,0.16056,62282.0,62281.0,0.007]
[1728060505676,0.16056,62282.0,62281.0,0.01]
[1728060505935,0.02517574,62282.0,62280.0,0.160563]
[1728060506171,0.02517574,62282.0,62279.0,0.015642]
[1728060506172,0.002,62281.0,62279.0,0.015642]
[1728060506648,0.001,62281.0,62279.0,0.169208]
[1728060506893,0.001,62281.0,62280.0,0.160565]
[1728060507366,0.02617574,62282.0,62280.0,0.160565]
[1728060507582,0.02617574,62282.0,62281.0,0.166562]
[1728060507804,0.02717574,62282.0,62281.0,0.006]
[1728060508066,0.02717574,62282.0,62280.0,0.001642]
[1728060508300,0.160562,62281.0,62280.0,0.001642]
[1728060508555,0.160562,62281.0,62280.0,0.008642]
[1728060508556,0.161562,62281.0,62280.0,0.008642]
[1728060508794,0.162562,62281.0,62280.0,0.008642]
[1728060509025,0.002,62281.0,62280.0,0.008642]
[1728060509249,0.001,62282.0,62280.0,0.001642]
[1728060509250,0.160561,62282.0,62280.0,0.001642]
[1728060509486,0.001,62281.0,62280.0,0.008642]
[1728060509715,0.001,62281.0,62280.0,0.169207]
[1728060510198,0.001,62281.0,62280.0,0.345407]
[1728060510429,0.001,62281.0,62280.0,0.36445618]
[1728060510664,0.002,62281.0,62280.0,0.37145618]
[1728060511604,0.001,62281.0,62280.0,0.36445618]
[1728060511856,0.160538,62291.0,62288.0,0.160542]
[1728060512550,0.16054,62290.0,62286.0,0.160548]
[1728060512771,0.160537,62291.0,62287.0,0.160544]
[1728060512995,0.160537,62291.0,62288.0,0.160543]
[1728060513203,0.321886,62293.0,62286.0,0.321096]
[1728060513440,0.160535,62292.0,62288.0,0.160543]
[1728060513685,0.321886,62293.0,62288.0,0.005]
[1728060513895,0.160534,62292.0,62289.0,0.160541]
[1728060514133,0.160534,62292.0,62288.0,0.165544]
[1728060514372,0.321884,62293.0,62288.0,0.005]
[1728060514590,0.321884,62293.0,62289.0,0.160541]
[1728060514856,0.000821,62293.0,62292.0,0.5683381]
[1728060515099,0.09603064,62305.0,62301.0,0.327811]
[1728060515342,0.2405041,62304.0,62301.0,0.51170066]
[1728060515599,0.09603064,62305.0,62301.0,0.51370066]
[1728060515853,0.09603064,62305.0,62301.0,0.55965668]
[1728060516225,0.09603064,62305.0,62301.0,0.56465668]
[1728060517871,0.04901532,62302.0,62301.0,0.57865668]
[1728060518096,0.05001532,62302.0,62301.0,0.59780456]
[1728060519289,0.03282255,62302.0,62301.0,0.76099127]
[1728060519503,0.14404596,62311.0,62310.0,0.238287]
[1728060519761,0.14404596,62311.0,62310.0,0.51607623]
[1728060520005,0.14404596,62311.0,62310.0,0.61507666]
[1728060520250,0.14404596,62311.0,62310.0,0.62007666]
[1728060520493,0.2405041,62322.0,62316.0,0.42366166]
[1728060520729,0.2405041,62322.0,62320.0,0.160462]
[1728060520959,0.2405041,62330.0,62320.0,0.34435166]
[1728060521188,0.02598157,62339.0,62320.0,0.52075166]
[1728060521434,0.02598157,62339.0,62334.0,0.34431566]
[1728060521664,0.02598157,62339.0,62334.0,0.48523496]
[1728060522125,0.02598157,62339.0,62334.0,0.58343496]
[1728060522843,0.02598157,62339.0,62334.0,0.58543496]
[1728060523075,0.02598157,62339.0,62334.0,0.59943496]
[1728060524523,0.000821,62339.0,62338.0,0.52890466]
[1728060524745,0.000821,62339.0,62338.0,0.57486068]
[1728060525912,0.000821,62339.0,62338.0,0.58886068]
[1728060526388,0.000821,62339.0,62338.0,0.57486068]
[1728060527071,0.000821,62339.0,62338.0,0.58886068]
[1728060527525,0.000821,62342.0,62341.0,0.248508]
[1728060527783,0.000821,62342.0,62341.0,0.4132273]
[1728060529742,0.000821,62342.0,62341.0,0.41835967]
[1728060530693,0.000821,62342.0,62341.0,0.43235967]
[1728060531162,0.000821,62342.0,62341.0,0.37464037]
[1728060531407,0.000821,62342.0,62341.0,0.188408]
[1728060531933,0.000821,62342.0,62341.0,0.174408]
[1728060532411,0.000821,62342.0,62341.0,0.188408]
[1728060532855,0.000821,62342.0,62341.0,0.174408]
[1728060534255,0.000821,62342.0,62341.0,0.181408]
[1728060534478,0.000821,62342.0,62341.0,0.167408]
[1728060534712,0.000821,62342.0,62341.0,0.172408]
[1728060534955,0.000821,62342.0,62341.0,0.167408]
[1728060535433,0.000821,62342.0,62341.0,0.174408]
[1728060537460,0.000821,62342.0,62341.0,0.160408]
[1728060537879,0.000821,62342.0,62341.0,0.170408]
[1728060538113,0.000821,62342.0,62341.0,0.165408]
[1728060538341,0.000821,62342.0,62341.0,0.166408]
[1728060538574,0.000821,62342.0,62341.0,0.172408]
[1728060541546,0.000821,62344.0,62343.0,0.002]
[1728060541768,0.000821,62344.0,62343.0,0.120402]
[1728060542195,0.000821,62344.0,62343.0,0.30429166]
[1728060542407,0.000821,62344.0,62343.0,0.40169166]
[1728060542621,0.000821,62344.0,62343.0,0.47799166]
[1728060542885,0.000821,62344.0,62343.0,0.294102]
[1728060543983,0.000821,62344.0,62343.0,0.308102]
[1728060544633,0.000821,62344.0,62343.0,0.224702]
[1728060544854,0.000821,62344.0,62343.0,0.014]
[1728060544855,0.163221,62344.0,62343.0,0.014]
[1728060545069,0.002821,62344.0,62343.0,0.014]
[1728060545335,0.000821,62344.0,62343.0,0.174402]
[1728060545776,0.1863706,62344.0,62343.0,0.028]
[1728060546012,0.0259706,62344.0,62343.0,0.188402]
[1728060546226,0.0259706,62344.0,62343.0,0.028]
[1728060546439,0.0259706,62344.0,62343.0,0.014]
[1728060546890,0.1863706,62344.0,62343.0,0.014]
[1728060547148,0.160402,62343.0,62341.0,0.00164]
[1728060547373,0.162405,62342.0,62341.0,0.00164]
[1728060547877,0.185405,62342.0,62341.0,0.00164]
[1728060548101,0.285405,62342.0,62341.0,0.00164]
[1728060548804,0.287405,62342.0,62341.0,0.00164]
[1728060549022,0.289405,62342.0,62341.0,0.00164]
[1728060549254,0.287405,62342.0,62341.0,0.00164]
[1728060549538,0.285405,62342.0,62341.0,0.00164]
[1728060550893,0.287405,62342.0,62341.0,0.00364]
[1728060551800,0.280405,62342.0,62341.0,0.00364]
[1728060556785,0.46429466,62342.0,62341.0,0.00364]
[1728060558223,0.002,62342.0,62341.0,0.164048]
[1728060558454,0.002,62342.0,62341.0,0.2203102]
[1728060558696,0.002,62342.0,62341.0,0.164048]
[1728060559174,0.001,62342.0,62341.0,0.163048]
[1728060559400,0.002,62342.0,62341.0,0.164048]
[1728060560104,0.001,62342.0,62341.0,0.163048]
[1728060560562,0.001,62342.0,62341.0,0.167048]
[1728060560781,0.00082,62343.0,62342.0,0.160405]
[1728060561268,0.00082,62343.0,62342.0,0.20771832]
[1728060561509,0.00082,62343.0,62342.0,0.23137498]
[1728060561777,0.00082,62343.0,62342.0,0.58479876]
[1728060562047,0.320746,62355.0,62342.0,0.58479876]
[1728060562048,0.160342,62367.0,62348.0,0.34427966]
[1728060562278,0.2405041,62362.0,62348.0,0.34427966]
[1728060562805,0.2405041,62362.0,62348.0,0.16039]
[1728060563048,0.2405041,62362.0,62348.0,0.27861444]
[1728060563751,0.2405041,62362.0,62348.0,0.16039]
[1728060563970,0.2405041,62362.0,62348.0,0.17339]
[1728060564189,0.2405041,62362.0,62348.0,0.24432061]
[1728060564622,0.02514462,62358.0,62348.0,0.2443162]
[1728060564854,0.02514462,62358.0,62348.0,0.17339]
[1728060565089,0.02514462,62358.0,62348.0,0.17439]
[1728060565318,0.02514462,62358.0,62348.0,0.37418966]
[1728060565564,0.02596887,62363.0,62348.0,0.37418966]
[1728060565565,0.02596887,62363.0,62355.0,0.42546166]
[1728060565792,0.02596887,62363.0,62355.0,0.47272457]
[1728060566019,0.02596887,62363.0,62355.0,0.42546166]
[1728060566261,0.02596887,62363.0,62355.0,0.49635603]
[1728060566480,0.02596887,62363.0,62355.0,0.42546166]
[1728060566710,0.02596887,62363.0,62355.0,0.4727124]
[1728060566933,0.02596887,62363.0,62355.0,0.4867124]
[1728060567646,0.02596887,62363.0,62355.0,0.43946166]
[1728060567875,0.02596887,62363.0,62355.0,0.255572]
[1728060568345,0.02596887,62363.0,62355.0,0.43946166]
[1728060568577,0.025142,62362.0,62355.0,0.45346166]
[1728060570691,0.025142,62362.0,62355.0,0.43946166]
[1728060571126,0.025142,62362.0,62355.0,0.255572]
[1728060571335,0.025142,62362.0,62355.0,0.269572]
[1728060571577,0.025142,62362.0,62355.0,0.255572]
[1728060571805,0.025142,62362.0,62355.0,0.241572]
[1728060572034,0.025142,62362.0,62355.0,0.255572]
[1728060573585,0.025142,62362.0,62355.0,0.269572]
[1728060577126,0.025142,62362.0,62355.0,0.255572]
[1728060577294,0.02596887,62363.0,62355.0,0.255572]
[1728060577295,0.02596887,62363.0,62355.0,0.241572]
[1728060577508,0.02596887,62363.0,62355.0,0.263572]
[1728060577712,0.02596887,62363.0,62355.0,0.26593414]
[1728060577912,0.02596887,62363.0,62355.0,0.25493414]
[1728060578152,0.02596887,62363.0,62358.0,0.338064]
[1728060578368,0.000822,62363.0,62358.0,0.52195366]
[1728060579311,0.000822,62363.0,62362.0,0.160354]
[1728060579512,0.000822,62363.0,62362.0,0.42664366]
[1728060580091,0.000822,62363.0,62362.0,0.42864366]
[1728060580702,0.000822,62363.0,62362.0,0.53594366]
[1728060581356,0.000822,62363.0,62362.0,0.55194366]
[1728060582352,0.000822,62363.0,62362.0,0.55710157]
[1728060582872,0.000822,62363.0,62362.0,0.55510157]
[1728060585231,0.000822,62363.0,62362.0,1.03616157]
[1728060587235,0.000822,62363.0,62362.0,1.03816157]
[1728060587681,0.000822,62363.0,62362.0,1.03616157]
[1728060588408,0.997465,62370.0,62362.0,0.87580757]
[1728060588627,0.997465,62370.0,62369.0,0.160336]
[1728060589070,0.997465,62370.0,62369.0,0.641346]
[1728060589300,0.997465,62370.0,62369.0,0.717446]
[1728060589775,0.997465,62370.0,62369.0,0.712446]
[1728060590013,0.997465,62370.0,62369.0,0.726446]
[1728060590931,0.997465,62370.0,62369.0,0.740446]
[1728060594115,0.997465,62370.0,62369.0,0.74561988]
[1728060594871,0.997465,62370.0,62369.0,0.740446]
[1728060595084,0.998286,62370.0,62369.0,0.740446]
[1728060597409,0.998286,62370.0,62369.0,0.659346]
[1728060602069,0.998286,62370.0,62369.0,0.737246]
[1728060602337,0.998286,62370.0,62369.0,0.835846]
[1728060602552,0.998286,62370.0,62369.0,0.840846]
[1728060602985,0.92973423,62370.0,62369.0,1.10403271]
[1728060603208,0.66402473,62370.0,62369.0,1.10403271]
[1728060603435,0.52266851,62370.0,62369.0,1.10603271]
[1728060603691,1.0,62380.0,62370.0,0.436933]
[1728060603907,1.0,62380.0,62370.0,0.60011971]
[1728060604121,1.0,62380.0,62370.0,1.26500937]
[1728060605786,0.2405041,62379.0,62370.0,1.09982266]
[1728060606068,0.2405041,62379.0,62370.0,0.733633]
[1728060606353,0.2405041,62379.0,62370.0,0.655333]
[1728060606354,0.02513421,62379.0,62370.0,0.655333]
[1728060606577,0.02513421,62379.0,62370.0,0.669333]
[1728060606818,0.02513421,62379.0,62370.0,0.9098371]
[1728060607044,0.02513421,62379.0,62370.0,0.83922266]
[1728060607523,0.02513421,62379.0,62370.0,0.84722266]
[1728060607989,0.26563831,62379.0,62370.0,0.84722266]
[1728060608210,0.02513421,62379.0,62370.0,0.663333]
[1728060608439,1.0,62380.0,62370.0,0.78160686]
[1728060608659,1.0,62380.0,62370.0,0.649333]
[1728060608901,1.0,62380.0,62370.0,0.641333]
[1728060609132,1.0,62380.0,62370.0,0.652333]
[1728060609374,1.0,62380.0,62370.0,0.666333]
[1728060609581,1.0,62380.0,62370.0,0.655333]
[1728060609800,1.0,62380.0,62370.0,0.641333]
[1728060610097,1.0,62380.0,62370.0,0.655333]
[1728060610300,0.2405041,62379.0,62370.0,0.669333]
[1728060610806,1.0,62380.0,62370.0,0.669333]
[1728060611053,1.0,62380.0,62370.0,0.76402492]
[1728060611985,1.0,62380.0,62370.0,0.77802492]
[1728060612446,1.0,62380.0,62370.0,0.683333]
[1728060612923,0.0998,62379.0,62370.0,0.683333]
[1728060613139,0.0998,62379.0,62370.0,0.77802492]
[1728060613365,0.0998,62379.0,62370.0,0.683333]
[1728060613845,0.0998,62379.0,62370.0,0.669333]
[1728060613846,0.260111,62379.0,62370.0,0.669333]
[1728060614058,0.260111,62379.0,62370.0,0.641333]
[1728060614331,0.0998,62379.0,62370.0,0.641333]
[1728060614572,0.0251367,62375.0,62370.0,0.641333]
[1728060615276,0.0251367,62375.0,62370.0,0.75980979]
[1728060615503,0.0251367,62375.0,62370.0,0.76880979]
[1728060615724,0.0251367,62375.0,62370.0,0.75980979]
[1728060615953,0.0251367,62375.0,62370.0,0.76880979]
[1728060616176,0.0251367,62375.0,62370.0,1.02131389]
[1728060616407,0.0251367,62375.0,62370.0,0.8102338]
[1728060616624,0.0251367,62375.0,62370.0,0.8222338]
[1728060617071,0.0251367,62375.0,62370.0,0.77183219]
[1728060617284,0.0251367,62375.0,62370.0,0.69167832]
[1728060617556,0.0251367,62375.0,62370.0,0.70467832]
[1728060618462,1.0,62380.0,62370.0,0.70467832]
[1728060618678,1.0,62380.0,62370.0,0.81117751]
[1728060618901,1.0,62380.0,62370.0,0.84237975]
[1728060620256,1.0,62380.0,62370.0,0.84402175]
[1728060622473,1.0,62380.0,62370.0,0.80322256]
[1728060622709,1.0,62380.0,62370.0,0.89772256]